Cogmind - Beta 16 @@@ ROGUE MODE // 2025.10.27 @ 18:07:42 Player: ChromeKnight Result: Destroyed self with Supercharged Sigix Terminator Performance ------------- Evolutions (9) 4500 Regions Visited (28) 5600 Robots Destroyed (174) 870 Value Destroyed (10192) 10192 Prototype IDs (35) 700 Alien Tech Used (7) 1400 Bonus (3574) 3574 TOTAL SCORE: 26836 Bonus ------- High Alert Combat Kills 966 Follower Combat Kills 2824 Entered Garrisons 600 Used RIF Installer 1500 Met Zhirov 300 Used Core Reset Matrix 3000 Met MAIN.C 5000 Friendly Fire -10616 Cogmind --------- Core Integrity 0/1600 Matter 290/300 Energy 75/100 System Corruption 6% Temperature Cool (0) Movement Core (50) Location -1/Command Parts ------- > --- POWER (2) -------- (None) > --- PROPULSION (6) --- (None) > --- UTILITY (15) ----- Advanced Signal Interpreter Improved Targeting Computer Advanced Melee Analysis Suite Advanced Target Analyzer Hacking Suite Improved System Shield Improved System Shield Improved System Shield > --- WEAPON (2) ------- (None) > --- INVENTORY (5) ---- High-powered Transdimensional Reconstructor Lance Peak State ------------ > --- POWER ------------ Backup Power VII Micro Antimatter Reactor > --- PROPULSION ------- Q-thruster Q-thruster Electron Diverter Impulse Thruster Array > --- UTILITY ---------- Advanced Sensor Array Long-range Sensor Array Advanced Signal Interpreter Improved Targeting Computer Improved Melee Analysis Suite Advanced Melee Analysis Suite Advanced Target Analyzer Hacking Suite Advanced Hacking Suite Improved System Shield Improved System Shield Improved System Shield Improved System Shield Improved System Shield Advanced Corruption Screen > --- WEAPON ----------- Sigix Broadsword > --- INVENTORY -------- Dimensional Node Initializer High-powered Transdimensional Reconstructor Subatomic Replicator Sigix Terminator [Rating: 168] Favorites ----------- Power Light Angular Momentum Engine Engine Light Angular Momentum Engine Power Core Nuclear Core Reactor Micro Antimatter Reactor Propulsion Improved VSS Leg Treads Light Treads Leg Improved VSS Leg Hover Unit Gravmag System Flight Unit Q-thruster Utility Large Storage Unit Device Shield Generator Storage Large Storage Unit Processor Advanced Melee Analysis Suite Hackware Hacking Suite Protection Heavy Reactive Plating Weapon Heavy EM Pulse Gun Energy Gun Heavy EM Pulse Gun Ballistic Gun Flak Gun Ballistic Cannon Mass Driver Launcher Precision Grenade Launcher Special Weapon Remote Datajack Impact Weapon Power Maul Slashing Weapon Katana Piercing Weapon Force Lance Special Melee Weapon Datajack Build | -11 -10 -10 -9 -9 -9 -8 -8 -8 -8 -8 -6 -6 -6 -6 -5 -5 -5 -5 -4 -4 -4 -4 -3 -3 -2 -2 -1 -1 ------- Run | Yrd Mat Min Mat Min Exi Min Mat Sto Gar Rec Fac Gar Fac Gar Fac Upp Upp Zhi Pro Fac Upp Upp Res Qua Res Tes Acc Com Slots Evolved 18 | . . . 2 . . . 2 . . . 4 . . . 2 . . . . 2 . . 2 . 2 . 2 . Power 1 | . . . . . . . . . . . . . . . . . . . . . . . 1 . . . . . Propulsion 4 | . . . 1 . . . . . . . 1 . . . . . . . . . . . 1 . . . 1 . Utility 13 | . . . 1 . . . 2 . . . 3 . . . 2 . . . . 2 . . . . 2 . 1 . Weapon . | . . . . . . . . . . . . . . . . . . . . . . . . . . . . . Parts Attached 227 | 6 5 1 12 1 . 9 19 1 15 . 5 28 10 19 8 . 4 6 . 11 18 4 17 13 4 4 2 5 Power 23 | 1 1 . 2 . . 1 4 . 1 . . 2 1 2 . . . 1 . . 4 . 1 1 1 . . . Engine 10 | 1 1 . 2 . . . 1 . . . . . . 2 . . . . . . 1 . 1 . 1 . . . Core 9 | . . . . . . 1 3 . 1 . . 2 1 . . . . . . . 1 . . . . . . . Reactor 4 | . . . . . . . . . . . . . . . . . . 1 . . 2 . . 1 . . . . Propulsion 57 | 2 . . 3 . . 2 5 1 6 . . 5 3 5 2 . . 3 . . 5 3 7 4 1 . . . Treads 2 | 2 . . . . . . . . . . . . . . . . . . . . . . . . . . . . Leg 38 | . . . 3 . . 2 4 1 2 . . 5 3 5 2 . . 3 . . 5 3 . . . . . . Wheel . | . . . . . . . . . . . . . . . . . . . . . . . . . . . . . Hover 6 | . . . . . . . 1 . 4 . . . . . . . . . . . . . 1 . . . . . Flight 11 | . . . . . . . . . . . . . . . . . . . . . . . 6 4 1 . . . Utility 99 | 1 2 1 3 1 . 2 5 . 5 . 3 16 4 9 5 . 4 2 . 8 6 . 7 6 2 3 2 2 Device 11 | . 1 1 1 1 . 1 . . . . . . . . . . . . . 2 . . 1 2 . 1 . . Storage 3 | 1 1 . . . . . . . . . . . 1 . . . . . . . . . . . . . . . Processor 18 | . . . . . . . 2 . 2 . 3 . . . . . . . . . 2 . 2 2 2 1 1 1 Hackware 47 | . . . 1 . . 1 2 . . . . 13 2 7 5 . 3 1 . 3 2 . 3 2 . 1 1 . Protection 20 | . . . 1 . . . 1 . 3 . . 3 1 2 . . 1 1 . 3 2 . 1 . . . . 1 Artifact . | . . . . . . . . . . . . . . . . . . . . . . . . . . . . . Weapon 48 | 2 2 . 4 . . 4 5 . 3 . 2 5 2 3 1 . . . . 3 3 1 2 2 . 1 . 3 Energy Gun 14 | 2 2 . 3 . . 3 . . . . . 1 . . . . . . . 2 . . . . . 1 . . Energy Cannon . | . . . . . . . . . . . . . . . . . . . . . . . . . . . . . Ballistic Gun 12 | . . . . . . . 5 . 1 . . 2 1 . . . . . . . 1 . 2 . . . . . Ballistic Cannon 3 | . . . . . . . . . . . . . . 2 . . . . . . . 1 . . . . . . Launcher 4 | . . . 1 . . . . . . . . . . 1 . . . . . . . . . . . . . 2 Special Weapon 4 | . . . . . . . . . . . . 1 1 . 1 . . . . 1 . . . . . . . . Impact Weapon 4 | . . . . . . . . . 1 . 2 1 . . . . . . . . . . . . . . . . Slashing Weapon 4 | . . . . . . 1 . . . . . . . . . . . . . . 1 . . 2 . . . . Piercing Weapon 2 | . . . . . . . . . . . . . . . . . . . . . 1 . . . . . . 1 Special Melee Weapon 1 | . . . . . . . . . 1 . . . . . . . . . . . . . . . . . . . Unidentified Prototypes 14 | . . 1 1 . . . 2 . . . . . . 1 1 . . 4 . . . . . 3 . 1 . . Corrupted Parts 1 | . . . . . . 1 . . . . . . . . . . . . . . . . . . . . . . System Corruption 1 | . . . . . . 1 . . . . . . . . . . . . . . . . . . . . . . Parts Lost 94 | . . . 3 . . 8 1 1 10 . . 8 2 7 . . . . . 5 16 7 8 . 1 . . 17 Power 10 | . . . . . . . . . 1 . . . . 1 . . . . . 1 3 1 . . 1 . . 2 Propulsion 25 | . . . . . . 2 . . 3 . . 2 . 2 . . . . . . 4 4 4 . . . . 4 Utility 42 | . . . 2 . . 3 1 1 3 . . 5 2 2 . . . . . 2 7 1 4 . . . . 9 Weapon 17 | . . . 1 . . 3 . . 3 . . 1 . 2 . . . . . 2 2 1 . . . . . 2 Highest Loss Streak 10 | . . . 2 . . 4 1 1 4 . . 5 1 2 . . . . . 3 6 7 4 . 1 . . 10 To Critical Strikes 3 | . . . . . . . . . . . . . . . . . . . . . 2 . . . . . . 1 Average Backups 11 | . 6 14 13 13 13 12 12 13 9 14 14 10 11 10 12 13 12 13 14 13 13 10 4 3 4 4 4 3 Power . | . . 1 1 1 1 1 . . . . . . . . . . . . . . . . . . . . . . Propulsion 2 | . 2 . . 1 1 1 5 6 2 . . . 1 1 2 2 3 4 4 5 7 5 . . . . . . Utility 5 | . 1 5 5 5 5 5 2 3 4 13 12 6 7 6 8 10 8 8 8 6 3 3 2 1 . . . . Weapon 2 | . 2 6 2 3 4 3 3 3 1 . . 2 3 2 1 . . . . . 1 1 . . 1 1 1 1 Tool/Special . | . . . . . . . . . . . . . . . . . . . . . . . . . . . . . Unused Backups 44 | . 1 4 6 . . 1 4 . 6 . . 6 . 4 1 . . 2 . . 3 . 1 2 . . . 3 Power 1 | . . . . . . . . . 1 . . . . . . . . . . . . . . . . . . . Propulsion 11 | . 1 2 . . . 1 2 . . . . . . . . . . 2 . . 3 . . . . . . . Utility 14 | . . . 2 . . . 1 . 5 . . 3 . 1 . . . . . . . . . 2 . . . . Weapon 14 | . . 2 3 . . . . . . . . 3 . 3 1 . . . . . . . 1 . . . . 1 Tool/Special 4 | . . . 1 . . . 1 . . . . . . . . . . . . . . . . . . . . 2 Average Slot Usage (%) 89 | . 86 100 98 100 100 89 96 99 95 100 83 85 89 84 88 88 93 94 94 91 83 70 62 75 75 86 87 80 Engine 4 | . 14 14 10 11 11 6 2 . . . . . . 5 5 5 5 2 . . . . . . 3 . . . Core 2 | . . . . . . 4 6 9 8 9 6 4 6 . . . . . . . . . . . . 3 4 2 Treads 3 | . 28 28 1 . . . . . . . . . . . . . . . . . . . . . . . . . Leg 17 | . . . 30 33 33 32 26 27 12 . . 17 26 25 22 23 23 23 23 21 20 20 1 . . . . . Hover 1 | . . . . . . . . . 14 27 14 . . . . . . . . . . . . . . . . . Flight 1 | . . . . . . . . . . . . . . . . . . . . . . . 12 17 17 17 16 13 Device 2 | . 1 14 11 11 11 5 . . . . . . . . . . . . . . . . . 5 8 8 4 2 Storage 6 | . 14 14 11 11 11 11 9 9 6 9 6 4 6 6 5 5 5 5 5 5 5 5 . . . . . . Processor 5 | . . . . . . . 2 8 9 18 23 12 . . . . . . . . 5 10 11 13 11 19 23 25 Hackware 22 | . . . 5 11 11 9 25 27 22 18 13 30 30 23 35 35 40 41 41 43 33 26 25 27 26 28 31 29 Protection 3 | . . . 4 . . . 5 . 6 . 4 2 5 8 5 5 5 5 5 5 6 . 2 3 . . . . Energy Gun 6 | . 27 28 21 22 22 18 1 . . . . 1 . . . . . . . 3 . . . . . . . . Ballistic Gun 2 | . . . . . . . 16 17 5 . . 2 6 . . . . . . . 2 . 3 1 . . . . Ballistic Cannon 1 | . . . . . . . . . . . . . . 3 5 5 5 5 5 2 . 2 . . . . . . Special Weapon 1 | . . . . . . . . . . . . 3 5 4 5 5 5 5 5 4 2 . . . . . . . Slashing Weapon 1 | . . . . . . 1 . . 5 9 1 . . . . . . . . . 1 . . 1 4 4 4 2 Peak Build Rating 168 | 6 12 19 27 27 27 28 41 40 43 43 58 70 72 72 81 78 87 98 96 105 101 86 113 152 155 167 168 168 Average Rating 59 | 4 6 12 24 27 27 24 38 39 38 43 52 57 69 61 70 78 84 91 96 101 87 71 67 119 150 159 167 141 On Entrance 67 | . 6 12 13 27 27 27 24 40 37 43 43 54 70 64 63 81 78 87 96 96 87 86 75 89 148 155 161 168 Avg Prop Armor Cover (%) 14 | . . . . . . . . . . . . . . . . . . . . . 5 22 6 22 . . . . Naked Turns . | . . . . . . . . . . . . . . . . . . . . . . . . . . . . . Heaviest Build 82 | 11 33 33 40 37 37 37 44 35 42 31 35 69 73 79 77 77 77 80 80 82 57 38 38 31 33 34 25 24 Greatest Support 118 | 40 40 40 40 36 36 36 54 54 54 27 27 65 70 70 83 83 83 118 118 118 110 105 35 40 40 40 40 40 Greatest Overweight (x) 3 | . . . 3 1 1 1 1 . 1 1 1 3 1 1 1 . . . . . . 1 1 . . . . . Average Overweight (x) . | . . . . 1 1 . . . . 1 1 . . . . . . . . . . . . . . . . . Largest Inventory Capacity 15 | 8 15 15 15 15 15 15 15 15 15 15 15 15 15 15 15 15 15 15 15 15 15 15 15 5 5 5 5 5 Average Capacity 13 | 7 14 15 15 15 15 15 15 15 12 15 15 12 15 15 15 15 15 15 15 15 15 15 5 5 5 5 5 5 Most Carried 15 | . 15 15 15 15 15 15 15 15 15 15 15 15 15 15 15 15 15 15 15 15 15 15 12 5 5 5 5 5 Average Carried 12 | . 6 14 14 14 15 14 14 14 10 15 14 11 14 13 14 15 14 14 15 14 14 11 5 4 5 5 5 4 Final Capacity 15 | 8 15 15 15 15 15 15 15 15 15 15 15 15 15 15 15 15 15 15 15 15 15 15 5 5 5 5 5 5 Final Carried 15 | . 15 15 15 15 15 14 15 15 15 15 15 15 15 15 15 15 15 15 15 15 15 12 5 5 5 5 5 2 Class Distribution -------------------- 34% | Bothacker-Mutant 26% | Mutant 21% | Hacker-Mutant 7% | Wizard-Sprinter 5% | Bothacker-Gladiator 3% | Wizard-Mutant Dominant Class ---------------- Mutant | -10/Materials Mutant | -10/Mines Mutant | -9/Materials Mutant | -9/Mines Mutant | -9/Exiles Mutant | -8/Mines Hacker-Mutant | -8/Materials Hacker-Mutant | -8/Storage Hacker-Mutant | -8/Garrison Bothacker-Gladiator | -8/Recycling Bothacker-Gladiator | -6/Factory Bothacker-Mutant | -6/Garrison Bothacker-Mutant | -6/Factory Bothacker-Mutant | -6/Garrison Bothacker-Mutant | -5/Factory Bothacker-Mutant | -5/Upper Caves Bothacker-Mutant | -5/Upper Caves Bothacker-Mutant | -5/Zhirov Bothacker-Mutant | -4/Proximity Caves Wizard-Mutant | -4/Factory Hacker-Mutant | -4/Upper Caves Hacker-Mutant | -4/Upper Caves Hacker-Mutant | -3/Research Wizard-Sprinter | -3/Quarantine Wizard-Sprinter | -2/Research Wizard-Sprinter | -2/Testing Wizard-Sprinter | -1/Access Wizard-Sprinter | -1/Command Resources | -11 -10 -10 -9 -9 -9 -8 -8 -8 -8 -8 -6 -6 -6 -6 -5 -5 -5 -5 -4 -4 -4 -4 -3 -3 -2 -2 -1 -1 ----------- Run | Yrd Mat Min Mat Min Exi Min Mat Sto Gar Rec Fac Gar Fac Gar Fac Upp Upp Zhi Pro Fac Upp Upp Res Qua Res Tes Acc Com Matter Collected 6052 | 188 122 57 139 45 . 128 625 434 464 10 67 585 275 892 224 220 86 . 162 349 381 60 22 172 75 70 97 103 Remotely . | . . . . . . . . . . . . . . . . . . . . . . . . . . . . . Salvage Created 6423 | . 245 34 601 48 . 464 541 579 525 . 132 550 114 456 . . . . . 307 876 284 15 172 75 70 139 196 Parts 343 | . 23 . 54 1 . 29 28 39 37 . 4 18 3 14 . . . . . 11 28 8 1 9 7 4 10 15 Haulers Intercepted 4 | . 1 . . . . . 1 1 . . 1 . . . . . . . . . . . . . . . . . Recyclers Shooed 4 | . . . . . . . 1 2 . . . . . . . . . . . . . . . 1 . . . . Parts Field Recycled . | . . . . . . . . . . . . . . . . . . . . . . . . . . . . . Retrieved Matter . | . . . . . . . . . . . . . . . . . . . . . . . . . . . . . Parts Self-Destructed 63 | . . . . . . . . . . . . . . . . 3 2 . 20 . 31 7 . . . . . . Prevented 5 | . . . . . . . . . . . . . . . . . . . 5 . . . . . . . . . Parts Restored . | . . . . . . . . . . . . . . . . . . . . . . . . . . . . . Kills | -11 -10 -10 -9 -9 -9 -8 -8 -8 -8 -8 -6 -6 -6 -6 -5 -5 -5 -5 -4 -4 -4 -4 -3 -3 -2 -2 -1 -1 ------- Run | Yrd Mat Min Mat Min Exi Min Mat Sto Gar Rec Fac Gar Fac Gar Fac Upp Upp Zhi Pro Fac Upp Upp Res Qua Res Tes Acc Com Combat Hostiles Destroyed 145 | . 6 3 14 1 . 16 12 16 17 . . 10 2 18 . . . . . 7 12 4 . . 1 . . 6 Melee 34 | . . . . . . 5 . . 6 . . 2 . . . . . . . . 12 4 . . 1 . . 4 Guns 78 | . 6 3 14 1 . 6 12 16 11 . . 3 2 2 . . . . . 2 . . . . . . . . Cannons 10 | . . . . . . . . . . . . . . 5 . . . . . 5 . . . . . . . . AOE 18 | . . . . . . 5 . . . . . . . 11 . . . . . . . . . . . . . 2 Classes Destroyed 17 | . 5 1 1 . . 2 2 . 2 . . 1 . . . . . . . 1 . . 1 1 . . . . Worker 4 | . . . . . . 1 2 . . . . . . . . . . . . . . . . 1 . . . . Builder 3 | . . . . . . . . . . . . . . . . . . . . 1 . . . . 2 . . . Tunneler 2 | . . . . . . . . . . . . . . . . . . . . . . . 1 . . . 1 . Hauler 4 | . 1 . . . . . 1 1 . . 1 . . . . . . . . . . . . . . . . . Recycler 1 | . . . . . . . . . . . . . . . . . . . . . . . . 1 . . . . Mechanic 1 | . . . . . . . 1 . . . . . . . . . . . . . . . . . . . . . Operator 7 | . 1 . 4 . . . 1 . . . . . . . . . . . . . . . . 1 . . . . Watcher 9 | . 1 . 2 . . . . . . . 1 . . . . . . . . . . . . . . 2 3 . Swarmer 38 | . 3 . 8 . . 10 . 3 6 . . . . . . . . . . . 5 . . . 1 . . 2 Grunt 53 | . 3 . 5 1 . 4 9 5 3 . . 4 . 7 . . . . . 5 3 4 . . . . . . Brawler 5 | . . . . . . . . . 2 . . . . 3 . . . . . . . . . . . . . . Duelist 4 | . . . . . . 2 . . . . . 2 . . . . . . . . . . . . . . . . Sentry 21 | . . . 2 . . . 2 7 4 . . 1 . 3 . . . . . . 2 . . . . . . . Hunter 9 | . . . . . . . 1 1 1 . . 1 1 . . . . . . 2 2 . . . . . . . Programmer 9 | . . . . . . . . . 1 . . 1 1 4 . . . . . . . . . . . . . 2 Behemoth 2 | . . . . . . . . . . . . 1 . 1 . . . . . . . . . . . . . . Combat Programmer 2 | . . . . . . . . . . . . . . . . . . . . . . . . . . . . 2 Decomposer 2 | . . . . . . . . . . . . . . . . . . . . . 2 . . . . . . . Assembled 10 | . . 3 . . . . . . . . . . . . . . . . . . . . . . . . . 7 Best Kill Streak 5 | . 3 3 4 1 . 4 5 4 4 . 1 4 1 4 . . . . . 5 2 3 1 1 1 2 2 2 Combat Bots Only 4 | . 3 3 4 1 . 4 4 4 4 . . 4 1 4 . . . . . 2 2 3 . . 1 . . 2 Max Kills in Single Turn 9 | . 1 1 1 1 . 2 2 2 1 . 1 1 1 2 . . . . . 1 1 1 1 1 1 1 1 9 Gunslinging . | . . . . . . . . . . . . . . . . . . . . . . . . . . . . . Exploded 2 | . . . . . . 2 . . . . . . . 2 . . . . . . . . . . . . . 2 Melee 1 | . . . . . . 1 . . 1 . . 1 . . . . . . . . 1 1 . . 1 . . 1 Uniques/NPCs Destroyed . | . . . . . . . . . . . . . . . . . . . . . . . . . . . . . Combat | -11 -10 -10 -9 -9 -9 -8 -8 -8 -8 -8 -6 -6 -6 -6 -5 -5 -5 -5 -4 -4 -4 -4 -3 -3 -2 -2 -1 -1 -------- Run | Yrd Mat Min Mat Min Exi Min Mat Sto Gar Rec Fac Gar Fac Gar Fac Upp Upp Zhi Pro Fac Upp Upp Res Qua Res Tes Acc Com Hostile Shots Fired 1634 | . 12 10 67 2 . 89 57 63 119 . . 190 64 152 14 1 . . 4 185 172 102 71 26 44 2 . 188 Missed 572 | . 3 6 20 . . 18 14 18 33 . . 93 18 41 4 . . . 2 63 46 27 34 11 27 2 . 92 Hits 1062 | . 9 4 47 2 . 71 43 45 86 . . 97 46 111 10 1 . . 2 122 126 75 37 15 17 . . 96 Melee 13 | . . . . . . 6 . . 2 . . 4 . . . . . . . . 1 . . . . . . . Projectile 1049 | . 9 4 47 2 . 65 43 45 84 . . 93 46 111 10 1 . . 2 122 125 75 37 15 17 . . 96 AOE 3 | . . . . . . . . . . . . . . . . . . . . 1 . . . . . . . 2 Critical Strikes 51 | . 1 . . . . 3 4 3 3 . . 2 4 7 1 . . . . 3 4 7 . . . . . 9 Part Disruptions 5 | . . . . . . . . . . . . . . . . . . . . 1 . . . 1 . . . 3 Damage Taken 19087 | . 79 41 390 17 . 904 687 672 1210 . . 1161 934 1875 150 18 9 . 28 1909 2277 1530 882 334 381 . . 3599 Core 4381 | . 6 8 33 . . 173 136 96 189 . . 392 58 121 48 . . . . 94 207 529 363 21 . . . 1907 Absorbed by Shields 230 | . . 16 143 6 . 57 . . 3 . . 5 . . . . . . . . . . . . . . . . Redirected to Shielding 179 | . . . . . . . . . . . . . . . . . . . . . 64 . . . . . . 115 Ignored by Resistances 672 | . . . . . . . . . . . . . 97 . 41 . 6 . 22 506 . . . . . . . . Regen/Repaired (Parts) 1021 | . . . . . . . . 134 . . . . . . 156 . . . . . . . . 94 259 19 . 359 Core Remaining (%) 64 | 100 . 94 . . . 48 . . . 23 . . . 32 . . . . 95 . . 27 . 65 . 100 . . Volleys Fired 555 | . 20 9 56 5 . 29 45 38 30 . . 58 36 91 14 7 5 . 7 65 30 . . 9 . . . 1 Largest 2 | . 2 2 2 2 . 2 2 2 2 . . 1 2 2 1 1 1 . 1 1 1 . . 1 . . . 1 Hottest 126 | . 90 90 90 90 . 126 56 56 56 . . 65 68 94 47 7 7 . 47 75 75 . . 40 . . . . Shots Fired 770 | . 40 19 107 7 . 41 90 77 48 . . 58 46 99 14 7 5 . 7 65 30 . . 9 . . . 1 Gun 534 | . 40 19 107 7 . 41 90 77 48 . . 21 28 16 . . . . . 12 19 . . 9 . . . . Cannon 81 | . . . . . . . . . . . . . . 31 1 . . . 2 47 . . . . . . . . Launcher 29 | . . . . . . . . . . . . . . 28 . . . . . . . . . . . . . 1 Special 126 | . . . . . . . . . . . . 37 18 24 13 7 5 . 5 6 11 . . . . . . . Kinetic 367 | . . . . . . . 90 77 48 . . 11 28 47 1 . . . 2 47 7 . . 9 . . . . Thermal 52 | . 16 . . . . 11 . . . . . . . . . . . . . 12 12 . . . . . . 1 Explosive 28 | . . . . . . . . . . . . . . 28 . . . . . . . . . . . . . . Electromagnetic 197 | . 24 19 107 7 . 30 . . . . . 10 . . . . . . . . . . . . . . . . Robot Hit Streak 16 | . 7 5 5 3 . 7 14 13 12 . . 10 7 16 4 7 4 . 1 7 9 . . 4 . . . . Robot Miss Streak 10 | . 3 1 7 2 . 3 6 10 9 . . 1 6 3 2 1 1 . 2 3 4 . . 1 . . . . Penetration Max 1 | . . . . . . . . . . . . . 1 . . . . . . . . . . . . . . . Secondary Targets 5 | . . 1 2 . . . . 1 1 . . . . . . . . . . . . . . . . . . . Max Gunslinging Chain 1 | . . 1 1 . . . . 1 1 . . . . . . . . . . . . . . . . . . . Shots Hit Robots 678 | . 23 11 50 4 . 40 82 64 73 . 7 62 25 64 9 6 4 . 2 43 60 15 1 6 4 4 4 15 Core Hits 432 | . 15 5 25 3 . 26 97 83 58 . 2 7 4 43 . . . . . 14 23 7 . 4 2 1 4 9 Critical Kills . | . . . . . . . . . . . . . . . . . . . . . . . . . . . . . Critical Parts Destroyed 8 | . . . . . . . . . . . 1 6 1 . . . . . . . . . . . . . . . Critical Strikes 36 | . . 1 1 1 . 2 . . 1 . 1 6 1 1 . . . . . 5 12 4 . . . . . . Burn 3 | . . . . . . . . . . . . . . . . . . . . 1 2 . . . . . . . Destroy 2 | . . . . . . . . . . . . 1 1 . . . . . . . . . . . . . . . Blast 5 | . . . . . . . . . . . . . . 1 . . . . . 4 . . . . . . . . Corrupt 3 | . . 1 1 1 . . . . . . . . . . . . . . . . . . . . . . . . Smash 6 | . . . . . . . . . . . 1 5 . . . . . . . . . . . . . . . . Sever 11 | . . . . . . 2 . . 1 . . . . . . . . . . . 8 . . . . . . . Impale 6 | . . . . . . . . . . . . . . . . . . . . . 2 4 . . . . . . Melee Attacks 298 | . . . . . . 16 . . 65 . 7 34 . . . . . . . . 51 16 5 16 24 16 13 35 Impact 36 | . . . . . . . . . 1 . 1 34 . . . . . . . . . . . . . . . . Slashing 201 | . . . . . . 16 . . 54 . 6 . . . . . . . . . 39 . . 16 24 16 13 17 Piercing 51 | . . . . . . . . . . . . . . . . . . . . . 12 16 5 . . . . 18 Sneak Attacks 22 | . . . . . . . . . 14 . 1 . . . . . . . . . . . 1 1 2 . 2 1 Combat Hostiles 2 | . . . . . . . . . 1 . . . . . . . . . . . . . . . . . . 1 Follow-up Attacks 3 | . . . . . . . . . . . . 3 . . . . . . . . . . . . . . . . Damage Inflicted 33400 | . 310 144 1102 54 . 1058 1397 1238 1487 . 319 1419 449 2518 13 . . . . 1140 1908 657 133 279 539 327 502 16407 Guns 6608 | . 310 144 852 54 . 520 1397 1230 727 . . 212 449 227 . . . . . 196 255 . . 35 . . . . Cannons 1490 | . . . . . . . . . . . . . . 556 . . . . . 934 . . . . . . . . Explosions 17421 | . . . 241 . . 287 . . . . . 46 . 1735 . . . . . . . . . . . . . 15112 Melee 7829 | . . . . . . 251 . . 760 . 319 1161 . . . . . . . . 1641 657 133 244 539 327 502 1295 Ramming 52 | . . . 9 . . . . 8 . . . . . . 13 . . . . 10 12 . . . . . . . Kinetic 5796 | . . . . . . . 1397 1230 727 . . 140 449 783 . . . . . 934 101 . . 35 . . . . Thermal 16260 | . 73 . 241 . . 438 . . . . . 46 . . . . . . . 196 154 . . . . . . 15112 Explosive 1735 | . . . . . . . . . . . . . . 1735 . . . . . . . . . . . . . . Electromagnetic 1728 | . 237 144 852 54 . 369 . . . . . 72 . . . . . . . . . . . . . . . . Impact 1224 | . . . . . . . . . . . 63 1161 . . . . . . . . . . . . . . . . Slashing 5486 | . . . . . . 251 . . 760 . 256 . . . . . . . . . 1312 . . 244 539 327 502 1295 Piercing 1119 | . . . . . . . . . . . . . . . . . . . . . 329 657 133 . . . . . Highest Corruption 10 | . . 3 5 5 5 6 . 2 10 10 . . 4 8 1 1 1 1 1 2 2 . . . . . . 6 Average Corruption 3 | . . 3 1 5 5 5 . 1 6 10 . . 3 5 1 1 1 1 1 1 2 . . . . . . 2 Corruption Purged . | . . . . . . . . . . . . . . . . . . . . . . . . . . . . . Corruption Blocked 11 | . . . . . . . . . . . . . . . . . . . . . . . . . . . . 11 Effects 211 | . . 12 10 19 . 22 . 14 45 8 . . 6 54 1 1 3 1 2 . 13 . . . . . . . Message Errors 59 | . . 5 1 8 . 5 . 3 13 2 . . 1 18 . . 1 . . . 2 . . . . . . . Matter Fused 51 | . . 4 4 6 . 5 . 3 9 2 . . 1 12 . . . 1 2 . 2 . . . . . . . Heat Flow Errors 28 | . . . 1 2 . 2 . 1 6 1 . . 3 7 1 . 1 . . . 3 . . . . . . . Energy Discharges 27 | . . 1 2 . . 3 . 3 9 . . . 1 6 . 1 . . . . 1 . . . . . . . Parts Rejected 2 | . . . . . . 1 . . 1 . . . . . . . . . . . . . . . . . . . Parts Fused 4 | . . . . . . . . 1 . 1 . . . . . . 1 . . . 1 . . . . . . . Data Loss (minor) 19 | . . 1 1 . . 2 . 1 4 1 . . . 6 . . . . . . 3 . . . . . . . Data Loss (major) 8 | . . . . 1 . 1 . . 2 1 . . . 2 . . . . . . 1 . . . . . . . Misfires 4 | . . 1 . . . . . 1 1 . . . . 1 . . . . . . . . . . . . . . Alerts 7 | . . . . 2 . 2 . 1 . . . . . 2 . . . . . . . . . . . . . . Weapon Failures 2 | . . . 1 . . 1 . . . . . . . . . . . . . . . . . . . . . . Overload Shots . | . . . . . . . . . . . . . . . . . . . . . . . . . . . . . Overflow Damage 2952 | . . . . . . 26 . . 5 . 63 340 . 21 . . . . . 19 177 89 103 79 183 63 . 1784 Projectiles 31 | . . . . . . . . . . . . . . 12 . . . . . 19 . . . . . . . . Explosions 1597 | . . . . . . 26 . . . . . 20 . 9 . . . . . . . . . . . . . 1542 Melee 1324 | . . . . . . . . . 5 . 63 320 . . . . . . . . 177 89 103 79 183 63 . 242 Knockbacks 26 | . . . 1 . . . . . . . . 3 . 3 1 . . . . 18 . . . . . . . . Impact 5 | . . . 1 . . . . . . . . 3 . . 1 . . . . . . . . . . . . . Kinetic 21 | . . . . . . . . . . . . . . 3 . . . . . 18 . . . . . . . . Secondary . | . . . . . . . . . . . . . . . . . . . . . . . . . . . . . Self-Inflicted Damage 1811 | . . . 48 . . 88 . . . . . 53 . 222 . . . . . . . . . . . . . 1400 Shots 14 | . . . 2 . . 3 . . . . . 1 . 7 . . . . . . . . . . . . . 1 Rammed . | . . . . . . . . . . . . . . . . . . . . . . . . . . . . . Targets Rammed 7 | . . . 1 . . . . 1 . . . . . . 2 . . . . 1 2 . . . . . . . Kicked 7 | . . . 1 . . . . 1 . . . . . . 2 . . . . 1 2 . . . . . . . Crushed . | . . . . . . . . . . . . . . . . . . . . . . . . . . . . . Highest Temperature 280 | . 90 158 211 280 . 277 30 153 262 196 . 20 230 250 151 . 253 . . 60 244 . . . . . . . Average Temperature 61 | . 36 70 50 85 . 84 9 21 99 104 . 8 70 62 87 . 133 . . 34 126 . . . . . . . Received Heat Transfer 3684 | . 18 . 68 8 . 245 360 333 189 . . 288 135 546 18 9 . . . 361 315 500 75 18 36 . . 162 Effects 4 | . . . . 1 . 3 . . . . . . . . . . . . . . . . . . . . . . Energy Bleed 2 | . . . . 1 . 1 . . . . . . . . . . . . . . . . . . . . . . Interference 2 | . . . . . . 2 . . . . . . . . . . . . . . . . . . . . . . Siege Activations . | . . . . . . . . . . . . . . . . . . . . . . . . . . . . . Martial Activations . | . . . . . . . . . . . . . . . . . . . . . . . . . . . . . Shielding Activations . | . . . . . . . . . . . . . . . . . . . . . . . . . . . . . Robots Disrupted . | . . . . . . . . . . . . . . . . . . . . . . . . . . . . . Combat Hostiles . | . . . . . . . . . . . . . . . . . . . . . . . . . . . . . Robots Corrupted 6 | . . . . . . . . . . . 1 5 . . . . . . . . . . . . . . . . Combat Hostiles 5 | . . . . . . . . . . . . 5 . . . . . . . . . . . . . . . . Parts Fried 7 | . . . 2 . . 1 . . . . 1 2 1 . . . . . . . . . . . . . . . Impact Corruptions 11 | . . . . . . . . . . . 2 9 . . . . . . . . . . . . . . . . Robots Melted . | . . . . . . . . . . . . . . . . . . . . . . . . . . . . . Combat Hostiles . | . . . . . . . . . . . . . . . . . . . . . . . . . . . . . Parts Melted 4 | . . . . . . 1 . . . . . . . . . . . . . 1 . 2 . . . . . . Heat Transferred 2438 | . 175 . 350 . . 683 . . . . . 100 . . . . . . . 550 550 . . . . . . 30 Parts Sabotaged . | . . . . . . . . . . . . . . . . . . . . . . . . . . . . . Parts Stolen . | . . . . . . . . . . . . . . . . . . . . . . . . . . . . . Parts Stripped . | . . . . . . . . . . . . . . . . . . . . . . . . . . . . . Power Chain Reactions 9 | . . . 4 . . 4 . . . . . 1 . . . . . . . . . . . . . . . . Alert | -11 -10 -10 -9 -9 -9 -8 -8 -8 -8 -8 -6 -6 -6 -6 -5 -5 -5 -5 -4 -4 -4 -4 -3 -3 -2 -2 -1 -1 ------- Run | Yrd Mat Min Mat Min Exi Min Mat Sto Gar Rec Fac Gar Fac Gar Fac Upp Upp Zhi Pro Fac Upp Upp Res Qua Res Tes Acc Com Maximum Alert Level 5 | . . . . . . . . 1 4 2 1 4 4 5 3 . . . . . . . . . . . . 2 Low Security (%) 54 | 100 100 100 100 100 . 100 100 90 8 . 23 7 . . . . . . . 100 . . 100 100 100 100 100 23 Level 1 7 | . . . . . . . . 9 22 . 76 17 . . . . . . . . . . . . . . . 57 Level 2 8 | . . . . . . . . . 16 100 . 21 24 . 30 . . . . . . . . . . . . 19 Level 3 15 | . . . . . . . . . 19 . . 27 67 22 69 . . . . . . . . . . . . . Level 4 12 | . . . . . . . . . 33 . . 25 8 63 . . . . . . . . . . . . . . Level 5 1 | . . . . . . . . . . . . . . 13 . . . . . . . . . . . . . . High Security . | . . . . . . . . . . . . . . . . . . . . . . . . . . . . . Max Security . | . . . . . . . . . . . . . . . . . . . . . . . . . . . . . Peak Influence 1853 | . 70 . 128 113 . 116 133 251 1336 601 371 1334 1191 1853 972 . . . . 97 . . 105 45 174 78 60 502 Initial 972 | . . . . 15 . . 27 39 152 601 371 108 700 830 972 . . . . . . . . 30 11 78 . 16 Average 414 | . 7 . 50 17 . 50 49 60 760 566 262 718 903 1290 743 . . . . 35 . . 14 8 68 13 20 256 Influence Increases 11094 | . 165 . 538 123 . 422 363 530 1384 38 164 1446 1193 1233 114 62 30 . 218 278 375 120 146 183 373 113 122 1361 Destroy 0b10 Robot/C 4860 | . 120 . 340 60 . 320 240 320 720 . . 620 440 460 40 40 20 . 120 160 300 80 . . 80 . . 380 Destroy 0b10 Robot/NC 280 | . 15 . 30 . . 5 25 10 . . 10 . 90 . 10 . . . 10 5 5 . 5 15 10 10 20 5 Destroy Leader 688 | . 24 . 74 10 . 50 52 102 30 . 4 20 106 40 14 . . . 20 20 10 10 . . 10 4 6 82 Allied During Kill 774 | . . . 11 8 . . . . 59 . . 292 205 7 20 22 10 . 68 14 15 . . . 3 . . 40 Trap Triggered on 0b10 20 | . . . . . . . . . . . . . . . . . . . . . . . . . . . . 20 Successful Hack 272 | . 6 . 6 . . . 16 8 10 38 . 28 41 . . . . . . 8 . . . 30 . 15 . 66 Disable Machine 495 | . . . 45 45 . . . . . . . . 210 . 30 . . . . 30 . . . 60 . 30 15 30 Anti-Garrison Action 1300 | . . . . . . . . . 400 . . 350 . 550 . . . . . . . . . . . . . . Destroy Structure 695 | . . . 17 . . 17 . . 105 . . 106 71 176 . . . . . 26 . . 6 18 60 24 21 48 Advance Influence 150 | . . . . . . . . . . . 150 . . . . . . . . . . . . . . . . . Partial Spotted 180 | . . . . . . . . . 15 . . . 15 . . . . . . . . . . . 75 . . 75 Lose Combat Pursuer 1380 | . . . 15 . . 30 30 90 45 . . 30 15 . . . . . . 15 45 30 135 60 135 30 60 615 Influence Decreases 10688 | . 165 . 498 163 . 350 342 388 283 845 538 267 1340 567 1441 355 263 . 218 278 375 120 91 218 253 253 95 982 Entered New Map 3516 | . . . . 25 . . 45 54 83 735 308 47 634 357 881 195 45 . . . . . . 25 9 62 . 11 Time Decay 4732 | . 165 . 473 138 . 290 287 264 . 110 230 . 526 . 410 160 178 . 178 184 194 100 49 148 194 123 95 236 Lost Part 725 | . . . 10 . . 60 10 10 100 . . 80 20 70 . . . . . 20 103 20 42 . 10 . . 170 Lost Ally 1452 | . . . 15 . . . . 60 100 . . 140 160 140 . . 40 . 40 74 78 . . . 40 . . 565 Purge Threat 263 | . . . . . . . . . . . . . . . 150 . . . . . . . . 45 . 68 . . Squads Dispatched 53 | . 2 . 3 . . . . 6 . . 6 . 12 . 1 . . . . 5 . . 3 2 2 2 1 8 Investigation 11 | . 1 . 1 . . . . 2 . . 2 . 3 . . . . . . 2 . . . . . . . . Extermination 16 | . . . . . . . . . . . 1 . 3 . 1 . . . . 1 . . 1 1 1 2 1 4 Reinforcement 19 | . 1 . 2 . . . . 1 . . . . 5 . . . . . . 2 . . 2 1 1 . . 4 Assault 1 | . . . . . . . . . . . . . 1 . . . . . . . . . . . . . . . Garrison 6 | . . . . . . . . 3 . . 3 . . . . . . . . . . . . . . . . . Intercept . | . . . . . . . . . . . . . . . . . . . . . . . . . . . . . Searches Triggered . | . . . . . . . . . . . . . . . . . . . . . . . . . . . . . Construction Impeded 4 | . . . . . . . . . . . . . 3 . . . . . . . . . . . 1 . . . Haulers Reinforced . | . . . . . . . . . . . . . . . . . . . . . . . . . . . . . Active Scanning Responses . | . . . . . . . . . . . . . . . . . . . . . . . . . . . . . Cargo Convoy Interrupts . | . . . . . . . . . . . . . . . . . . . . . . . . . . . . . Stealth | -11 -10 -10 -9 -9 -9 -8 -8 -8 -8 -8 -6 -6 -6 -6 -5 -5 -5 -5 -4 -4 -4 -4 -3 -3 -2 -2 -1 -1 --------- Run | Yrd Mat Min Mat Min Exi Min Mat Sto Gar Rec Fac Gar Fac Gar Fac Upp Upp Zhi Pro Fac Upp Upp Res Qua Res Tes Acc Com Distress Signals 15 | . 2 . 1 . . . . 2 . . . . 1 . . . . . . . . . 1 . 4 . 1 3 Communications Jammed 1 | . . . . . . . . . . . . . . . . . . . . 1 . . . . . . . . Distress Signals 1 | . . . . . . . . . . . . . . . . . . . . 1 . . . . . . . . Times Spotted 453 | . 13 3 29 2 . 18 17 26 32 . 1 44 30 33 13 3 2 . 10 17 19 10 19 15 24 5 4 64 Peak Tracking Total 16 | . 5 1 4 3 . 4 4 6 5 . . 5 3 7 4 2 2 . 3 5 5 4 9 7 14 3 5 16 Tactical Retreats 38 | . . . 1 . . 1 2 4 3 . . 2 1 . . . . . . 1 2 2 2 1 4 1 1 10 Traps | -11 -10 -10 -9 -9 -9 -8 -8 -8 -8 -8 -6 -6 -6 -6 -5 -5 -5 -5 -4 -4 -4 -4 -3 -3 -2 -2 -1 -1 ------- Run | Yrd Mat Min Mat Min Exi Min Mat Sto Gar Rec Fac Gar Fac Gar Fac Upp Upp Zhi Pro Fac Upp Upp Res Qua Res Tes Acc Com Traps Triggered 26 | . . . . . . . . 2 9 . 1 4 1 5 1 . . . . . . . . . 2 . 1 . Indirectly . | . . . . . . . . . . . . . . . . . . . . . . . . . . . . . Trap Hack Attempts . | . . . . . . . . . . . . . . . . . . . . . . . . . . . . . Triggered . | . . . . . . . . . . . . . . . . . . . . . . . . . . . . . Disarmed 4 | . . . . . . . . . . . . . . . . . . . . . . . . . . . 4 . Reprogrammed 2 | . . . . . . . . . . . . . . . . . . . . . . . . . . . . 2 Reused 2 | . . . . . . . . . . . . . . . . . . . . . . . . . . . . 2 Traps Extracted . | . . . . . . . . . . . . . . . . . . . . . . . . . . . . . Installed . | . . . . . . . . . . . . . . . . . . . . . . . . . . . . . Triggered 2 | . . . . . . . . . . . . . . . . . . . . . . . . . . . . 2 Machines | -11 -10 -10 -9 -9 -9 -8 -8 -8 -8 -8 -6 -6 -6 -6 -5 -5 -5 -5 -4 -4 -4 -4 -3 -3 -2 -2 -1 -1 ---------- Run | Yrd Mat Min Mat Min Exi Min Mat Sto Gar Rec Fac Gar Fac Gar Fac Upp Upp Zhi Pro Fac Upp Upp Res Qua Res Tes Acc Com Machines Disabled 53 | . . . 3 3 . . . . 5 . . 8 14 7 2 . . . . 2 . . . 4 . 2 1 2 Max in Single Turn 2 | . . . 1 1 . . . . 1 . . 2 1 2 1 . . . . 1 . . . 1 . 1 1 1 Garrison Access 1 | . . . . . . . . . . . . . . . . . . . . . . . . . . . 1 . Garrison Relay 12 | . . . . . . . . . 5 . . 4 . 3 . . . . . . . . . . . . . . Phase Generator 2 | . . . . . . . . . . . . 1 . 1 . . . . . . . . . . . . . . Machines Repaired . | . . . . . . . . . . . . . . . . . . . . . . . . . . . . . Machines Dismantled . | . . . . . . . . . . . . . . . . . . . . . . . . . . . . . Machines Sabotaged . | . . . . . . . . . . . . . . . . . . . . . . . . . . . . . Overloaded Fab Kills . | . . . . . . . . . . . . . . . . . . . . . . . . . . . . . Hacking | -11 -10 -10 -9 -9 -9 -8 -8 -8 -8 -8 -6 -6 -6 -6 -5 -5 -5 -5 -4 -4 -4 -4 -3 -3 -2 -2 -1 -1 --------- Run | Yrd Mat Min Mat Min Exi Min Mat Sto Gar Rec Fac Gar Fac Gar Fac Upp Upp Zhi Pro Fac Upp Upp Res Qua Res Tes Acc Com Machines Accessed 73 | . 2 . 2 . . . 4 2 3 4 2 2 5 . 1 . . 6 . 3 . . 1 8 3 8 7 10 Terminals 54 | . 2 . 2 . . . 3 . 3 4 . 2 1 . 1 . . . . 2 . . 1 8 3 6 6 10 Fabricators 4 | . . . . . . . . . . . . . 2 . . . . . . 1 . . . . . 1 . . Repair Stations 3 | . . . . . . . . 1 . . . . 1 . . . . . . . . . . . . 1 . . Recycling Units . | . . . . . . . . . . . . . . . . . . . . . . . . . . . . . Scanalyzers 1 | . . . . . . . 1 . . . . . . . . . . . . . . . . . . . . . Garrison Access 5 | . . . . . . . . 1 . . 2 . 1 . . . . . . . . . . . . . 1 . Total Hacks 259 | . 5 . 7 . . . 22 9 7 15 6 3 16 . 2 . . 19 . 12 . . 4 39 10 28 16 39 Successful 126 | . 1 . 1 . . . 10 5 3 7 3 2 5 . . . . 19 . 6 . . 1 17 3 14 10 19 Failed 131 | . 4 . 6 . . . 11 4 4 7 3 1 11 . 2 . . . . 6 . . 3 22 7 14 6 20 Catastrophic 13 | . 2 . 1 . . . . . . 2 1 . . . 2 . . . . . . . . . 2 . . 3 Database Lockouts 2 | . . . . . . . 1 . . 1 . . . . . . . . . . . . . . . . . . Manual 87 | . 4 . 7 . . . 4 1 . 13 4 . 4 . 2 . . . . 1 . . 3 17 1 17 . 9 Terminals 198 | . 5 . 7 . . . 15 . 7 15 . 3 3 . 2 . . . . 9 . . 4 39 10 26 14 39 Fabricators 10 | . . . . . . . . . . . . . 6 . . . . . . 3 . . . . . 1 . . Repair Stations 9 | . . . . . . . . 6 . . . . 2 . . . . . . . . . . . . 1 . . Recycling Units . | . . . . . . . . . . . . . . . . . . . . . . . . . . . . . Scanalyzers 7 | . . . . . . . 7 . . . . . . . . . . . . . . . . . . . . . Garrison Access 16 | . . . . . . . . 3 . . 6 . 5 . . . . . . . . . . . . . 2 . Terminal Hacks 92 | . . . . . . . 3 . 3 7 . 2 1 . . . . 19 . 4 . . 1 16 3 7 9 17 Record 7 | . . . . . . . . . . . . . . . . . . 7 . . . . . . . . . . Part Schematic 7 | . . . . . . . . . . 3 . . . . . . . 4 . . . . . . . . . . Robot Analysis 11 | . . . . . . . 2 . . 4 . . . . . . . 4 . . . . . . . . . 1 Prototype ID Bank 10 | . . . . . . . . . . . . . . . . . . 4 . . . . . 5 . . . 1 Open Door 6 | . . . . . . . . . 1 . . . . . . . . . . . . . . 1 . . 3 1 Level Access Points 3 | . . . . . . . . . . . . . . . . . . . . 1 . . . . . . 1 1 Branch Access Points 7 | . . . . . . . 1 . . . . . . . . . . . . 1 . . 1 1 1 1 1 . Emergency Access Points 12 | . . . . . . . . . 1 . . 1 . . . . . . . . . . . 3 1 1 1 4 Recycling Unit Index 1 | . . . . . . . . . . . . . . . . . . . . . . . . . . . . 1 Scanalyzer Index 1 | . . . . . . . . . . . . . . . . . . . . . . . . . . . . 1 Garrison Index 1 | . . . . . . . . . . . . . . . . . . . . . . . . . . 1 . . Unreport Threat 3 | . . . . . . . . . . . . . . . . . . . . . . . . 1 . 2 . . Locate Traps 3 | . . . . . . . . . . . . . . . . . . . . . . . . 1 1 1 . . Disarm Traps 3 | . . . . . . . . . . . . . . . . . . . . . . . . . . . 2 1 Reprogram Traps 2 | . . . . . . . . . . . . . . . . . . . . . . . . . . . . 2 Maintenance Status 1 | . . . . . . . . . . . . . . . . . . . . . . . . . . . . 1 Surveillance Status 1 | . . . . . . . . . . . . . . . . . . . . 1 . . . . . . . . Patrol Status 1 | . . . . . . . . . . . . . . . . . . . . . . . . . . . . 1 Recall Extermination 1 | . . . . . . . . . . . . . . . . . . . . . . . . . . 1 . . Zone Layout 8 | . . . . . . . . . . . . . 1 . . . . . . 1 . . . 4 . . 1 1 Garrison Registry 1 | . . . . . . . . . 1 . . . . . . . . . . . . . . . . . . . Security Stations 1 | . . . . . . . . . . . . 1 . . . . . . . . . . . . . . . . Disengage Seal 1 | . . . . . . . . . . . . . . . . . . . . . . . . . . . . 1 Fabricator Hacks 3 | . . . . . . . . . . . . . 1 . . . . . . 2 . . . . . . . . Load Schematic 2 | . . . . . . . . . . . . . 1 . . . . . . 1 . . . . . . . . Build 1 | . . . . . . . . . . . . . . . . . . . . 1 . . . . . . . . Repair Station Hacks 5 | . . . . . . . . 3 . . . . 1 . . . . . . . . . . . . 1 . . Scan Component 3 | . . . . . . . . 2 . . . . 1 . . . . . . . . . . . . . . . Repair 1 | . . . . . . . . 1 . . . . . . . . . . . . . . . . . . . . Refit 1 | . . . . . . . . . . . . . . . . . . . . . . . . . . 1 . . Recycling Unit Hacks . | . . . . . . . . . . . . . . . . . . . . . . . . . . . . . Scanalyzer 5 | . . . . . . . 5 . . . . . . . . . . . . . . . . . . . . . Insert Component 1 | . . . . . . . 1 . . . . . . . . . . . . . . . . . . . . . Analyze 1 | . . . . . . . 1 . . . . . . . . . . . . . . . . . . . . . Retrieve Study 3 | . . . . . . . 3 . . . . . . . . . . . . . . . . . . . . . Garrison Access Hacks 5 | . . . . . . . . 1 . . 2 . 1 . . . . . . . . . . . . . 1 . Unlock Access 4 | . . . . . . . . 1 . . 2 . 1 . . . . . . . . . . . . . . . Seal Access 1 | . . . . . . . . . . . . . . . . . . . . . . . . . . . 1 . Unauthorized Hacks 16 | . 1 . 1 . . . 2 1 . . 1 . 1 . . . . . . . . . . 1 . 6 . 2 Terminals 12 | . 1 . 1 . . . 2 . . . . . . . . . . . . . . . . 1 . 5 . 2 Track 1 | . . . . . . . . . . . . . . . . . . . . . . . . 1 . . . . Assimilate 1 | . . . . . . . . . . . . . . . . . . . . . . . . . . . . 1 Botnet 6 | . . . . . . . . . . . . . . . . . . . . . . . . . . 5 . 1 Disrupt 1 | . . . . . . . 1 . . . . . . . . . . . . . . . . . . . . . Operators 3 | . 1 . 1 . . . 1 . . . . . . . . . . . . . . . . . . . . . Fabricators 1 | . . . . . . . . . . . . . . . . . . . . . . . . . . 1 . . Liberate 1 | . . . . . . . . . . . . . . . . . . . . . . . . . . 1 . . Repair Stations . | . . . . . . . . . . . . . . . . . . . . . . . . . . . . . Recycling Units . | . . . . . . . . . . . . . . . . . . . . . . . . . . . . . Scanalyzers . | . . . . . . . . . . . . . . . . . . . . . . . . . . . . . Garrison Access 3 | . . . . . . . . 1 . . 1 . 1 . . . . . . . . . . . . . . . Restock 1 | . . . . . . . . . . . . . 1 . . . . . . . . . . . . . . . Reprogram 2 | . . . . . . . . 1 . . 1 . . . . . . . . . . . . . . . . . Data Cores Recovered 4 | . . . 1 . . . 1 . . . . . 1 . . . . . . . . . . 1 . . . . Used 1 | . . . . . . . 1 . . . . . . . . . . . . . . . . . . . . . Hacking Detections 46 | . 2 . 2 . . . 4 2 2 3 2 1 5 . 1 . . . . 3 . . 1 7 3 2 1 5 Full Trace Events 13 | . . . 1 . . . 1 1 1 3 2 . 2 . . . . . . 2 . . . . . . . . Feedback Events 1 | . . . 1 . . . . . . . . . . . . . . . . . . . . . . . . . Corruption 1 | . . . 1 . . . . . . . . . . . . . . . . . . . . . . . . . Feedback Blocked . | . . . . . . . . . . . . . . . . . . . . . . . . . . . . . Robot Schematics Acquired . | . . . . . . . . . . . . . . . . . . . . . . . . . . . . . Robots Built . | . . . . . . . . . . . . . . . . . . . . . . . . . . . . . Authchips . | . . . . . . . . . . . . . . . . . . . . . . . . . . . . . Time . | . . . . . . . . . . . . . . . . . . . . . . . . . . . . . Total Robot Build Rating . | . . . . . . . . . . . . . . . . . . . . . . . . . . . . . Part Schematics Acquired 8 | . . . . . . . 1 . . 3 . . . . . . . 4 . . . . . . . . . . Parts Built 1 | . . . . . . . . . . . . . . . . . . . . 1 . . . . . . . . Authchips . | . . . . . . . . . . . . . . . . . . . . . . . . . . . . . Time 93 | . . . . . . . . . . . . . . . . . . . . 93 . . . . . . . . Total Part Build Rating 7 | . . . . . . . . . . . . . . . . . . . . 7 . . . . . . . . Part Studies Acquired 3 | . . . . . . . 3 . . . . . . . . . . . . . . . . . . . . . Parts Repaired 1 | . . . . . . . . 1 . . . . . . . . . . . . . . . . . . . . Time 22 | . . . . . . . . 22 . . . . . . . . . . . . . . . . . . . . Parts Recycled . | . . . . . . . . . . . . . . . . . . . . . . . . . . . . . Recycled Matter . | . . . . . . . . . . . . . . . . . . . . . . . . . . . . . Retrieved Matter . | . . . . . . . . . . . . . . . . . . . . . . . . . . . . . Retrieved Components . | . . . . . . . . . . . . . . . . . . . . . . . . . . . . . Parts Scanalyzed 1 | . . . . . . . 1 . . . . . . . . . . . . . . . . . . . . . Part Schematics Acquired 1 | . . . . . . . 1 . . . . . . . . . . . . . . . . . . . . . Parts Damaged . | . . . . . . . . . . . . . . . . . . . . . . . . . . . . . Bothacking | -11 -10 -10 -9 -9 -9 -8 -8 -8 -8 -8 -6 -6 -6 -6 -5 -5 -5 -5 -4 -4 -4 -4 -3 -3 -2 -2 -1 -1 ------------ Run | Yrd Mat Min Mat Min Exi Min Mat Sto Gar Rec Fac Gar Fac Gar Fac Upp Upp Zhi Pro Fac Upp Upp Res Qua Res Tes Acc Com Used RIF Installer 3 | . . . . . . . . . 1 . . 1 . 1 . . . . . . . . . . . . . . Coupler Efficiency 1 | . . . . . . . . . . . . 1 . . . . . . . . . . . . . . . . Signal Jammer 1 | . . . . . . . . . . . . . . 1 . . . . . . . . . . . . . . Robots Hacked 60 | . . . . . . . . . . . . 18 8 11 6 5 2 . 2 3 5 . . . . . . . Non-combat 5 | . . . . . . . . . . . . . 1 . 2 1 . . . 1 . . . . . . . . Combat 55 | . . . . . . . . . . . . 18 7 11 4 4 2 . 2 2 5 . . . . . . . Robot Hacks Applied 68 | . . . . . . . . . . . . 22 9 12 6 5 3 . 2 4 5 . . . . . . . parse_system 1 | . . . . . . . . . . . . . . 1 . . . . . . . . . . . . . . check_alert 1 | . . . . . . . . . . . . . 1 . . . . . . . . . . . . . . . purge_threat 1 | . . . . . . . . . . . . . . . 1 . . . . . . . . . . . . . block_reporting 1 | . . . . . . . . . . . . . . . . . . . . 1 . . . . . . . . find_garrison 1 | . . . . . . . . . . . . . 1 . . . . . . . . . . . . . . . reboot_propulsion 2 | . . . . . . . . . . . . . . . . . 1 . . . 1 . . . . . . . scatter_targeting 3 | . . . . . . . . . . . . 1 . . . 1 1 . . . . . . . . . . . mark_system 1 | . . . . . . . . . . . . 1 . . . . . . . . . . . . . . . . spike_heat 5 | . . . . . . . . . . . . 4 1 . . . . . . . . . . . . . . . amplify_resonance 6 | . . . . . . . . . . . . 2 . 1 1 . . . 1 1 . . . . . . . . wipe_record 1 | . . . . . . . . . . . . . 1 . . . . . . . . . . . . . . . disable_weapons 2 | . . . . . . . . . . . . . . . . 1 . . . . 1 . . . . . . . reboot_system 8 | . . . . . . . . . . . . 6 1 1 . . . . . . . . . . . . . . go_dormant 1 | . . . . . . . . . . . . 1 . . . . . . . . . . . . . . . . overwrite_iff 8 | . . . . . . . . . . . . 1 . 3 . . . . 1 . 3 . . . . . . . formatsys_low 3 | . . . . . . . . . . . . . . . 1 1 . . . 1 . . . . . . . . formatsys_high 23 | . . . . . . . . . . . . 6 4 6 3 2 1 . . 1 . . . . . . . . Relay Couplers Released 48 | . . . . . . . . . 21 . . 15 . 12 . . . . . . . . . . . . . . Machine Destruction 48 | . . . . . . . . . 21 . . 15 . 12 . . . . . . . . . . . . . . Attached 29 | . . . . . . . . . . . . 13 2 7 3 . 2 1 . . . . 1 . . . . . Fabnet Peak Effective % . | . . . . . . . . . . . . . . . . . . . . . . . . . . . . . Robots Rewired 12 | . . . . . . . . . 6 . . 4 . . . . . . . . 2 . . . . . . . Allies Hacked 3 | . . . . . . . . . 1 . . 1 . . . . . . . . . . . . . . . 1 Hacks Repelled 2 | . . . . . . . . . 2 . . . . . . . . . . . . . . . . . . . Allies | -11 -10 -10 -9 -9 -9 -8 -8 -8 -8 -8 -6 -6 -6 -6 -5 -5 -5 -5 -4 -4 -4 -4 -3 -3 -2 -2 -1 -1 -------- Run | Yrd Mat Min Mat Min Exi Min Mat Sto Gar Rec Fac Gar Fac Gar Fac Upp Upp Zhi Pro Fac Upp Upp Res Qua Res Tes Acc Com Total Allies 101 | . . 3 . 3 . . . 3 8 . . 13 4 8 4 3 1 . 1 2 5 . . . . . . 43 Largest Group 15 | . . 3 3 3 3 1 . 3 6 1 1 10 7 2 6 7 7 6 7 5 2 . . . . . . 15 Highest-Rated Group 567 | . . 40 40 85 85 31 . 15 74 19 19 462 383 90 183 241 253 241 253 200 95 . . . . . . 567 Highest-Rated Ally 234 | . . 16 16 31 31 31 . 5 39 19 19 148 148 90 49 49 49 49 49 49 48 . . . . . . 234 Total Orders 7 | . . . . . . . . . . . . 2 . 4 1 . . . . . . . . . . . . . STAY 3 | . . . . . . . . . . . . 1 . 2 . . . . . . . . . . . . . . FOLLOW 3 | . . . . . . . . . . . . 1 . 2 . . . . . . . . . . . . . . AID 1 | . . . . . . . . . . . . . . . 1 . . . . . . . . . . . . . Ally Attacks 698 | . . . 26 8 . . . 22 60 . . 135 140 22 11 13 15 . 25 17 20 . . . 28 . . 156 Total Damage 17460 | . . . 265 82 . . . 121 1134 . . 3173 4456 785 331 377 238 . 668 505 389 . . . 554 . . 4382 Kills 131 | . . . 3 2 . . . 1 19 . . 21 38 5 4 2 1 . 8 2 3 . . . 3 . . 19 Allies Corrupted 4 | . . . . . . . . . . . . . . . . . . . . . . . . . . . . 4 Allies Melted . | . . . . . . . . . . . . . . . . . . . . . . . . . . . . . Intel | -11 -10 -10 -9 -9 -9 -8 -8 -8 -8 -8 -6 -6 -6 -6 -5 -5 -5 -5 -4 -4 -4 -4 -3 -3 -2 -2 -1 -1 ------- Run | Yrd Mat Min Mat Min Exi Min Mat Sto Gar Rec Fac Gar Fac Gar Fac Upp Upp Zhi Pro Fac Upp Upp Res Qua Res Tes Acc Com Active Infowar (turns) 1889 | . . . . . . . 128 . . . . . . . . . . . . . . . . 337 484 385 261 294 Sensors 1761 | . . . . . . . . . . . . . . . . . . . . . . . . 337 484 385 261 294 Machine Analysis 128 | . . . . . . . 128 . . . . . . . . . . . . . . . . . . . . . Robot Analysis Total 11 | . . . . . . . 2 . . 4 . . . . . . . 4 . . . . . . . . . 1 Derelict Logs Recovered 10 | . . 2 . 3 . . . . . . . . . . . 1 . . 2 . 2 . . . . . . . Drone Launches 2 | . . . . . . . . . . . . . . . . . . . . . . . . . 2 . . . Drone Recoveries . | . . . . . . . . . . . . . . . . . . . . . . . . . . . . . Exploration | -11 -10 -10 -9 -9 -9 -8 -8 -8 -8 -8 -6 -6 -6 -6 -5 -5 -5 -5 -4 -4 -4 -4 -3 -3 -2 -2 -1 -1 ------------- Run | Yrd Mat Min Mat Min Exi Min Mat Sto Gar Rec Fac Gar Fac Gar Fac Upp Upp Zhi Pro Fac Upp Upp Res Qua Res Tes Acc Com Turns Passed 23143 | 71 1116 1448 1607 798 90 842 764 1086 1799 235 499 1785 1471 2114 984 335 401 234 739 531 1182 493 346 511 484 385 261 532 Spaces Moved 15452 | 43 267 586 635 421 51 377 437 224 1386 195 156 1307 713 925 495 194 301 172 543 288 726 222 602 781 891 805 591 1118 Core 469 | 5 . . . . . . . . . . . 447 . . . . . . . . . . . . . . . 17 Treads 954 | 38 267 586 63 . . . . . . . . . . . . . . . . . . . . . . . . . Legs 8006 | . . . 572 421 51 377 437 224 488 . . 853 713 925 495 194 301 172 543 288 726 222 4 . . . . . Wheels . | . . . . . . . . . . . . . . . . . . . . . . . . . . . . . Hover 1263 | . . . . . . . . . 898 195 156 7 . . . . . . . . . . 7 . . . . . Flight 4760 | . . . . . . . . . . . . . . . . . . . . . . . 591 781 891 805 591 1101 Fastest Speed 31 | 50 160 160 90 180 180 90 100 120 52 112 112 50 112 105 112 112 112 112 120 120 120 112 32 31 31 31 31 31 Average Speed 102 | 147 160 160 177 180 180 134 117 120 92 112 113 92 174 167 167 112 112 115 120 120 120 182 37 34 31 31 31 32 Slowest Speed 360 | 160 160 160 360 180 180 180 190 120 120 112 116 240 187 187 187 112 112 120 120 120 120 190 190 40 31 31 31 50 Overloaded Moves . | . . . . . . . . . . . . . . . . . . . . . . . . . . . . . Propulsion Burnouts . | . . . . . . . . . . . . . . . . . . . . . . . . . . . . . Robots Hopped 32 | . . . . . . . . . . . . . . 1 . . . . . . . . 14 6 . . . 11 Potential Cave-ins 2 | . . . . . . . . . . . . . . . . . . . . . . . . . . . . 2 Cave-ins Triggered 1 | . . . . . . . . . . . . . . . . . . . . . . . . . . . . 1 Teleports 1 | . . . . . . . . . . . . . . . . . . . . . . . . 1 . . . . Exploration Rate (%) 43 | 4 32 95 34 85 10 62 35 30 96 44 6 94 21 74 13 37 47 60 69 7 63 15 19 56 28 63 20 45 Regions Visited 28 Branch Regions 15 Pre-discovered Areas 5 | . . . . 1 . . . . . . . . . . . . . 3 . . 1 . . . . . . . Known Exits Taken 12 | . . . . . . . 1 1 . . 1 . 1 . . 1 . . . 1 . 1 1 1 1 1 1 . Unknown Exits Taken 13 | 1 1 1 1 1 1 1 . . . 1 . . . . 1 . 1 1 1 . 1 . . . . . . . Scrap Searched 14 | . . 1 . 1 . 1 . . . . . . . . . 1 1 . 4 . 4 1 . . . . . . Spaces Dug 64 | . . . . . . . . . . . . . . . . . . . 3 1 . . 3 10 20 8 7 12 Terrain Destroyed 525 | . . . 16 . . 20 . . . . . 99 5 306 . . . . 3 15 1 . 3 10 20 8 7 12 Melee 60 | . . . . . . . . . . . . . . . . . . . . . . . 3 10 20 8 7 12 Projectile 34 | . . . . . . . . . . . . . 5 10 . . . . 3 15 1 . . . . . . . AOE 431 | . . . 16 . . 20 . . . . . 99 . 296 . . . . . . . . . . . . . . Terrain Rammed . | . . . . . . . . . . . . . . . . . . . . . . . . . . . . . Walls Destroyed . | . . . . . . . . . . . . . . . . . . . . . . . . . . . . . Machines Disabled . | . . . . . . . . . . . . . . . . . . . . . . . . . . . . . Actions | -11 -10 -10 -9 -9 -9 -8 -8 -8 -8 -8 -6 -6 -6 -6 -5 -5 -5 -5 -4 -4 -4 -4 -3 -3 -2 -2 -1 -1 --------- Run | Yrd Mat Min Mat Min Exi Min Mat Sto Gar Rec Fac Gar Fac Gar Fac Upp Upp Zhi Pro Fac Upp Upp Res Qua Res Tes Acc Com Total 21576 | 48 915 1081 1012 455 50 644 604 966 1783 211 466 1777 902 1404 640 310 364 209 627 411 932 273 703 983 1049 906 641 1210 Wait 4628 | . 605 474 283 25 . 206 68 696 194 17 294 274 136 335 108 110 50 18 78 39 82 30 65 143 130 78 35 55 Move 15359 | 42 266 585 634 420 50 376 436 223 1384 194 155 1305 712 921 494 193 300 171 542 287 725 221 574 768 890 804 590 1097 Hop 30 | . . . . . . . . . . . . . . 1 . . . . . . . . 13 6 . . . 10 Pick Up 151 | . 15 4 10 2 . 5 11 3 24 . 1 20 1 13 8 . 3 2 . 4 11 . 6 7 . . . 1 Fast Attach 131 | 6 4 2 9 . . 4 10 1 3 . 4 17 1 6 1 . . 6 . 5 14 1 12 11 3 5 2 4 Attach 77 | . . . 3 . . 5 3 1 13 . 1 3 2 8 3 . 3 1 . 4 4 4 9 7 . . . 3 Detach 13 | . . . 1 . . . 1 . . . . 1 . . . . 1 . . . . . 3 4 . . . 2 Swap 63 | . 1 . 1 1 . 1 8 . 2 . 1 17 8 11 4 . 1 2 . 2 1 1 . . 1 . . . Drop 173 | . 4 7 14 2 . 2 22 3 14 . 3 19 6 13 6 . 1 9 . 4 9 . 16 12 1 3 1 2 Fire 555 | . 20 9 56 5 . 29 45 38 30 . . 58 36 91 14 7 5 . 7 65 30 . . 9 . . . 1 Melee 294 | . . . . . . 16 . . 64 . 7 31 . . . . . . . . 51 16 5 16 24 16 13 35 Ram . | . . . . . . . . . . . . . . . . . . . . . . . . . . . . . Kick 7 | . . . 1 . . . . 1 . . . . . . 2 . . . . 1 2 . . . . . . . Crush . | . . . . . . . . . . . . . . . . . . . . . . . . . . . . . Escape Stasis 61 | . . . . . . . . . 55 . . 1 . 5 . . . . . . . . . . . . . . Rewire 34 | . . . . . . . . . . . . 31 . . . . . . . . 3 . . . . . . . Trap . | . . . . . . . . . . . . . . . . . . . . . . . . . . . . . Miscellaneous . | . . . . . . . . . . . . . . . . . . . . . . . . . . . . . Route ------- -11/Scrapyard -10/Materials -10/Mines (discovered 3 exits: *Mat x2 / Sub) -9/Materials -9/Mines (discovered 4 exits: *Mat x2 / [*Exi] / [*Zio]) -9/Exiles -8/Mines -8/Materials (discovered 3 exits: [*Fac] / *Sto x2) -8/Storage -8/Garrison (discovered 3 exits: *Rec x3) -8/Recycling -6/Factory (discovered 2 exits: Gar / Gar) -6/Garrison (discovered 3 exits: *Fac x3) -6/Factory -6/Garrison (discovered 2 exits: *Fac x2) -5/Factory -5/Upper Caves -5/Upper Caves -5/Zhirov -4/Proximity Caves -4/Factory (discovered 7 exits: Res x4 / *Upp x2 / Arm) -4/Upper Caves -4/Upper Caves -3/Research (discovered 3 exits: Res / *Qua x2) -3/Quarantine -2/Research (discovered 3 exits: *Acc / *Tes x2) -2/Testing -1/Access (discovered 2 exits: Sur / *Com) -1/Command (discovered 2 exits: Sur x2) History --------- Turn | Location | Event 2 | -11/Scrapyard | Met Revision 17 10 | -11/Scrapyard | Discovered new exit (range 15) 72 | -11/Scrapyard | Entered Materials 300 | -10/Materials | Build established: Mutant 1173 | -10/Materials | Discovered new exit (range 7) 1188 | -10/Materials | Entered Mines 1231 | -10/Mines | Assembled infested the area 1236 | -10/Mines | Assisted by a Guerilla fighting off Assembled 1798 | -10/Mines | Received a Rocket Launcher from a helpful Derelict 1840 | -10/Mines | Discovered new exit (range 15) 1867 | -10/Mines | Found a damaged Exp. Sensor Array with a note attached 1871 | -10/Mines | Found Prototype Device 1871 | -10/Mines | Identified Exp. Sensor Array 2296 | -10/Mines | Found a Scrap Suit stashed away for nefarious purposes 2301 | -10/Mines | Found Scrap Suit 2342 | -10/Mines | Learned Materials terminal intel 2441 | -10/Mines | Discovered new exit (range 11) 2577 | -10/Mines | Assisted by bots powering up and referring to "LRC-V3" 2596 | -10/Mines | Identified exit to Subcaves 2636 | -10/Mines | Entered Materials 2636 | -9/Materials | Accompanied by 3 allies 2636 | -9/Materials | Evolved 2 slots: Propulsion x1, Utility x1 2637 | -9/Materials | Loaded intel: 10 terminal locations 2700 | -9/Materials | Discovered new exit (range 16) 4243 | -9/Materials | Entered Mines 4262 | -9/Mines | Met a Derelict bent on vengeance 4606 | -9/Mines | Learned Materials interactive machine intel 4647 | -9/Mines | Met a Derelict testing a Signal Generator 4661 | -9/Mines | Found Signal Generator 4728 | -9/Mines | Learned location of 1 exit from Lower Caves 4732 | -9/Mines | Learned location of Storage (-8) 4829 | -9/Mines | Discovered new exit (range 11) 4904 | -9/Mines | A Derelict revealed a hidden shortcut to a safe place 4935 | -9/Mines | Discovered new exit (range 14) 4951 | -9/Mines | Received a Mining Laser from a helpful Derelict 5026 | -9/Mines | Deemed a non-threat by the Exiles lab entrance 5026 | -9/Mines | Discovered new exit (range 5) 5041 | -9/Mines | Entered Exiles 5041 | -9/Exiles | Accompanied by 3 allies 5070 | -9/Exiles | Discovered new exit (range 15) 5071 | -9/Exiles | Led the pair of lost Derelicts to a safe place 5086 | -9/Exiles | Met 8R-AWN 5131 | -9/Exiles | Entered Mines 5131 | -8/Mines | Accompanied by 1 ally 5627 | -8/Mines | Lost 4 parts (2n1u1w) 5651 | -8/Mines | Discovered new exit (range 6) 5673 | -8/Mines | Core integrity fell below 50% 5973 | -8/Mines | Entered Materials 5973 | -8/Materials | Evolved 2 slots: Utility x2 5974 | -8/Materials | Loaded intel: 19 interactive machine locations 6026 | -8/Materials | Central database locked down 6297 | -8/Materials | Build established: Hacker-Mutant 6381 | -8/Materials | Discovered new exit (range 10) 6595 | -8/Materials | Discovered new exit (range 16) 6708 | -8/Materials | Identified exit to Storage 6737 | -8/Materials | Entered Storage 6909 | -8/Storage | Repaired Flak Gun 7537 | -8/Storage | Garrison activated, responded to threat 7665 | -8/Storage | Identified exit to Garrison 7797 | -8/Storage | Lost 3 allies 7823 | -8/Storage | Entered Garrison 7857 | -8/Garrison | Triggered checkpoint 8091 | -8/Garrison | Triggered checkpoint 8337 | -8/Garrison | Triggered checkpoint 8365 | -8/Garrison | Triggered checkpoint 8379 | -8/Garrison | Lost 3 allies 8405 | -8/Garrison | Discovered new exit (range 14) 8495 | -8/Garrison | Garrison Relay disabled 8557 | -8/Garrison | P-60 Hacker assimilated allied Pest 3b 8558 | -8/Garrison | Core integrity fell below 50% 8582 | -8/Garrison | System corruption reached 10% 8587 | -8/Garrison | P-60 Hacker assimilated allied Defender 3b 8612 | -8/Garrison | Lost 4 parts (1p1n1u1w) 8676 | -8/Garrison | Garrison Relay disabled 8788 | -8/Garrison | Garrison Relay disabled 8800 | -8/Garrison | Discovered new exit (range 15) 8843 | -8/Garrison | Rescued a captive Derelict 8845 | -8/Garrison | Rescued a captive Derelict 8929 | -8/Garrison | Triggered checkpoint 8967 | -8/Garrison | Installed Relay Interface Framework 8980 | -8/Garrison | Discovered new exit (range 10) 8993 | -8/Garrison | Triggered checkpoint 9027 | -8/Garrison | Garrison Relay disabled 9119 | -8/Garrison | Triggered checkpoint 9410 | -8/Garrison | Garrison Relay disabled 9471 | -8/Garrison | Build established: Bothacker-Gladiator 9474 | -8/Garrison | Discovered new exit (range 81) 9474 | -8/Garrison | Discovered new exit (range 56) 9474 | -8/Garrison | Discovered new exit (range 88) 9622 | -8/Garrison | Entered Recycling 9622 | -8/Recycling | Accompanied by 1 ally 9623 | -8/Recycling | Joined Warlord attack on 0b10 via Recycling 9738 | -8/Recycling | Discovered new exit (range 16) 9857 | -8/Recycling | Entered Factory 9857 | -6/Factory | Accompanied by 1 ally 9857 | -6/Factory | Evolved 4 slots: Propulsion x1, Utility x3 9866 | -6/Factory | Identified exit to Garrison 10050 | -6/Factory | Identified exit to Garrison 10060 | -6/Factory | Garrison activated, responded to threat 10356 | -6/Factory | Entered Garrison 10356 | -6/Garrison | Accompanied by 1 ally 10466 | -6/Garrison | Lost 5 parts (2n3u) 10516 | -6/Garrison | Triggered checkpoint 10541 | -6/Garrison | Triggered checkpoint 10684 | -6/Garrison | Garrison Relay disabled 10692 | -6/Garrison | Triggered checkpoint 10720 | -6/Garrison | Discovered new exit (range 12) 10722 | -6/Garrison | Found embedded Infiltrators 10750 | -6/Garrison | Build established: Bothacker-Mutant 10802 | -6/Garrison | Triggered checkpoint 11036 | -6/Garrison | Phase Generator disabled 11111 | -6/Garrison | Garrison Relay disabled 11150 | -6/Garrison | Triggered checkpoint 11160 | -6/Garrison | Triggered checkpoint 11312 | -6/Garrison | Triggered checkpoint 11414 | -6/Garrison | Triggered checkpoint 11501 | -6/Garrison | Discovered new exit (range 10) 11512 | -6/Garrison | Expanded RIF knowledge: Coupler Efficiency 11644 | -6/Garrison | Discovered new exit (range 11) 11646 | -6/Garrison | Triggered checkpoint 11665 | -6/Garrison | Garrison Relay disabled 11721 | -6/Garrison | Spotted B-75 Beast 11741 | -6/Garrison | Destroyed B-75 Beast 11760 | -6/Garrison | Rewired B-90 Cyclops 11920 | -6/Garrison | Triggered checkpoint 11955 | -6/Garrison | Learned Factory security intel 11958 | -6/Garrison | Found Hvy. Reactive Plating 11963 | -6/Garrison | Found Hvy. Reactive Plating 11966 | -6/Garrison | Found Hvy. Reactive Plating 12019 | -6/Garrison | Garrison Relay disabled 12141 | -6/Garrison | Entered Factory 12141 | -6/Factory | Accompanied by 7 allies 13354 | -6/Factory | Core integrity fell below 50% 13356 | -6/Factory | Lost 3 allies 13541 | -6/Factory | First assault squad dispatched 13599 | -6/Factory | Identified exit to Garrison 13612 | -6/Factory | Entered Garrison 13612 | -6/Garrison | Accompanied by 1 ally 13687 | -6/Garrison | Phase Generator disabled 13850 | -6/Garrison | Expanded RIF knowledge: Signal Jamming 13898 | -6/Garrison | Triggered checkpoint 14058 | -6/Garrison | Triggered checkpoint 14178 | -6/Garrison | Garrison Relay disabled 14264 | -6/Garrison | Spotted B-75 Beast 14494 | -6/Garrison | Triggered checkpoint 14512 | -6/Garrison | Triggered checkpoint 14533 | -6/Garrison | Destroyed B-75 Beast 14557 | -6/Garrison | Lost 3 allies 14917 | -6/Garrison | Discovered new exit (range 10) 15066 | -6/Garrison | Triggered checkpoint 15137 | -6/Garrison | Garrison Relay disabled 15347 | -6/Garrison | Discovered new exit (range 14) 15610 | -6/Garrison | Garrison Relay disabled 15634 | -6/Garrison | Triggered checkpoint 15726 | -6/Garrison | Entered Factory 15726 | -5/Factory | Accompanied by 2 allies 15726 | -5/Factory | Evolved 2 slots: Utility x2 16654 | -5/Factory | Discovered new exit (range 8) 16710 | -5/Factory | Entered Upper Caves 16710 | -5/Upper Caves | Accompanied by 4 allies 16856 | -5/Upper Caves | Identified exit to Upper Caves 17045 | -5/Upper Caves | Entered another Upper Caves area 17045 | -5/Upper Caves | Accompanied by 7 allies 17389 | -5/Upper Caves | Discovered new exit (range 9) 17446 | -5/Upper Caves | Entered Zhirov 17446 | -5/Zhirov | Accompanied by 6 allies 17446 | -5/Zhirov | Discovered new exit (range 3) 17467 | -5/Zhirov | Met Zhirov 17494 | -5/Zhirov | Learned location of Quarantine (-3) 17494 | -5/Zhirov | Learned location of Testing (-2) 17494 | -5/Zhirov | Learned location of Command (-1) 17501 | -5/Zhirov | Zhirov requested help retrieving the SGEMP Prototype 17534 | -5/Zhirov | Found Alien Artifact 17534 | -5/Zhirov | Identified Integrated Dissipator 17534 | -5/Zhirov | Installed Integrated Dissipator, increased core heat dissipation (+20) 17607 | -5/Zhirov | Found Alien Artifact 17680 | -5/Zhirov | Entered Proximity Caves 17680 | -4/Proximity Caves | Accompanied by 6 allies 17996 | -4/Proximity Caves | Learned location of 1 exit from Research 18027 | -4/Proximity Caves | Discovered new exit (range 13) 18419 | -4/Proximity Caves | Entered Factory 18419 | -4/Factory | Accompanied by 5 allies 18419 | -4/Factory | Evolved 2 slots: Utility x2 18563 | -4/Factory | Lost 4 allies 18589 | -4/Factory | Fabricated Assault Drone Bay (x1) 18765 | -4/Factory | Build established: Wizard-Mutant 18786 | -4/Factory | Identified exit to Research 18797 | -4/Factory | Identified exit to Upper Caves 18797 | -4/Factory | Identified exit to Armory 18950 | -4/Factory | Entered Upper Caves 18976 | -4/Upper Caves | Lost 3 parts (1p2u) 19221 | -4/Upper Caves | Build established: Hacker-Mutant 19273 | -4/Upper Caves | Lost 3 allies 19309 | -4/Upper Caves | Attracted the attention of an 0b10 outpost 19501 | -4/Upper Caves | Attracted the attention of an 0b10 checkpoint 19563 | -4/Upper Caves | Lost 6 parts (1p1n3u1w) 19616 | -4/Upper Caves | Lost 6 parts (1p2n2u1w) 19770 | -4/Upper Caves | Discovered new exit (range 7) 20132 | -4/Upper Caves | Entered another Upper Caves area 20168 | -4/Upper Caves | Core integrity fell below 50% 20211 | -4/Upper Caves | Lost 7 parts (1p4n1u1w) 20439 | -4/Upper Caves | Discovered exit to Research (range 7) 20625 | -4/Upper Caves | Entered Research 20625 | -3/Research | Evolved 2 slots: Power x1, Propulsion x1 20626 | -3/Research | Identified exit to Research 20833 | -3/Research | Identified exit to Quarantine 20836 | -3/Research | Spotted B-86 Titan 20971 | -3/Research | Entered Quarantine 20990 | -3/Quarantine | Found Alien Artifact 20990 | -3/Quarantine | Identified Core Reset Matrix 20990 | -3/Quarantine | Identified Transdimensional Reconstructor 20990 | -3/Quarantine | Used Core Reset Matrix 20991 | -3/Quarantine | Lost 4 parts (2n2u) 20994 | -3/Quarantine | Detected hypermatrix surge 20994 | -3/Quarantine | Sensed 18 artifacts in vicinity 21190 | -3/Quarantine | Found Prototype Processor 21226 | -3/Quarantine | Discovered exit to Research (range 8) 21241 | -3/Quarantine | Found Dimensional Node Initializer 21241 | -3/Quarantine | Initialized slip node 21245 | -3/Quarantine | Found Hpw. Transdimensional Reconstructor 21292 | -3/Quarantine | Found Sigix Broadsword 21376 | -3/Quarantine | Spotted Alpha 7 21451 | -3/Quarantine | Found Subatomic Replicator 21453 | -3/Quarantine | Warped through subspace to slip node 21465 | -3/Quarantine | Found Sigix Terminator 21469 | -3/Quarantine | Found Dimensional Node Initializer 21482 | -3/Quarantine | Entered Research 21482 | -2/Research | Evolved 2 slots: Utility x2 21485 | -2/Research | Build established: Wizard-Sprinter 21564 | -2/Research | Identified exit to Testing 21750 | -2/Research | Discovered new exit (range 13) 21803 | -2/Research | Spotted B-90 Cyclops 21910 | -2/Research | Allied Derelicts emerged from ambush trap array 21966 | -2/Research | Entered Testing 21988 | -2/Testing | Spotted PG-XLC6PWZSWL 22006 | -2/Testing | Found Prototype Energy Gun 22006 | -2/Testing | Identified Tachyon Dispersion Ray 22167 | -2/Testing | Discovered new exit (range 15) 22294 | -2/Testing | Identified exit to Access 22351 | -2/Testing | Entered Access 22351 | -1/Access | Evolved 2 slots: Propulsion x1, Utility x1 22422 | -1/Access | Identified exit to Surface 22425 | -1/Access | Identified exit to Command 22612 | -1/Access | Entered Command 22655 | -1/Command | Disengaged cave seal 22655 | -1/Command | Assembled emerged from the dark tunnel 22700 | -1/Command | Lost 3 allies 22888 | -1/Command | Used Subatomic Replicator to create Supercharged Sigix Terminator 22930 | -1/Command | Spotted Executioner 22930 | -1/Command | Spotted Executioner 22930 | -1/Command | Spotted Executioner 22930 | -1/Command | Spotted Executioner 22930 | -1/Command | Spotted Striker 22930 | -1/Command | Spotted Striker 22930 | -1/Command | Spotted Alpha 7 22930 | -1/Command | Spotted Alpha 7 22955 | -1/Command | Lost 5 parts (1p1n2u1w) 22991 | -1/Command | Found Unknown Launcher 22991 | -1/Command | Identified Gamma Bomb Array 23083 | -1/Command | Spotted Combat Programmer 23107 | -1/Command | Crushed by falling debris 23112 | -1/Command | Spotted M Guard 23112 | -1/Command | Spotted Combat Programmer 23112 | -1/Command | Spotted M Guard 23122 | -1/Command | Met MAIN.C 23126 | -1/Command | 0b10 Conduit disabled 23129 | -1/Command | Core integrity fell below 50% 23139 | -1/Command | Emitted hypermatrix ping 23144 | -1/Command | Assembled emerged from beneath the floor 23144 | -1/Command | Fired Supercharged Sigix Terminator 23144 | -1/Command | Destroyed Combat Programmer 23144 | -1/Command | Destroyed Combat Programmer 23144 | -1/Command | Destroyed self with Supercharged Sigix Terminator Last Messages --------------- 23144_ Combat Programmer destroyed. 23144_ Destroyed Prototype Hover Unit. 23144_ Destroyed Prototype Reactor. 23144_ Destroyed Prototype Device. 23144_ Combat Programmer fries systems beyond repair. 23144_ Combat Programmer destroyed. 23144_ as-48368 destroyed. 23144_ Destroyed Unknown Slashing Weapon. 23144_ Destroyed Unknown Hover Unit. 23144_ as-49489 destroyed. 23144_ Destroyed Unknown Hover Unit. 23144_ as-40657 destroyed. 23144_ as-73357 destroyed. 23144_ Destroyed Unknown Ballistic Gun. 23144_ as-86967 destroyed. 23144_ Destroyed Unknown Ballistic Gun. 23144_ as-38059 destroyed. 23144_ Destroyed Unknown Hover Unit. 23144_ as-09578 destroyed. Map ----- +----------------------------------------------------+ | ?????????????????????????????????????????????????? | | ?????????????????????????????????????????????????? | | ?????????????????????????????????????????????????? | | ?????????????????????????????????????????????????? | | ?????????????????????????????????????????????????? | | ?????????????????????????????????????????????????? | | ?????????????????????????????????????????????????? | | ?????????????????????????????????????????????????? | | ??????????????????????????????????#############??? | | ????????????????????????????????? """" #??? | | ??????????????????????????? ????? "" #??? | | ??????????????????????????? ?? "" #### | | ?????????????????????????"" """ + | | ?????????????????????????? " + | | ?????????????????????????" + | | ?????????????????????????" #### | | ????????????????????????# #??? | | ????????????????????????# MMM #??? | | ????????????????????????# MMM ""#??? | | ????????????????????????#" MMM """""""#??? | | ????????????????????????#" """""""#??? | | ????????????????????????# """"""#??? | | ????????????????????????# " #??? | | ????????????????????????# " #??? | | ????????????????????????"a "" " #??? | | ????????????????????????"@ """"?#??? | | ????????????????????????" " ????? | | ????????????????????????# "??????? | | ????????????????????????# """??????? | | ????????????????????????# ????????? | | ????????????????????????###############?#????????? | | ?????????????????????????????????????????????????? | | ?????????????????????????????????????????????????? | | ?????????????????????????????????????????????????? | | ?????????????????????????????????????????????????? | | ?????????????????????????????????????????????????? | | ?????????????????????????????????????????????????? | | ?